bitfinex/quotes_ETHUSD_20241212
["timestamp","ask_amount","ask_price","bid_price","bid_amount"]
[1734011836128,1.5818,3943.5,3941.9,0.12482386]
[1734011836340,2.53608,3943.1,3941.9,2.53684]
[1734011836651,4.11802,3942.9,3941.6,2.53702]
[1734011836855,1.5818,3942.9,3941.3,5.71862865]
[1734011837059,1.5818,3942.9,3941.4,2.53716]
[1734011837212,1.5818,3942.9,3942.0,2.53677]
[1734011837630,0.03170774,3942.8,3941.7,2.53696]
[1734011837829,4.11802,3942.9,3941.7,2.53696]
[1734011838034,0.0287887,3942.8,3941.7,2.53696]
[1734011838280,1.5365,3942.7,3941.7,2.53696]
[1734011838584,1.5174,3942.7,3941.3,3.54391953]
[1734011838731,2.53647,3942.5,3941.3,6.08112953]
[1734011838930,4.05394,3942.4,3940.8,3.54391953]
[1734011839179,1.6458,3942.3,3941.1,2.53731]
[1734011839360,4.1824,3942.3,3941.1,2.53731]
[1734011839563,4.1824,3942.3,3941.2,2.53729]
[1734011839762,1.6458,3942.3,3940.8,6.08141953]
[1734011839966,1.6458,3942.3,3941.4,2.53716]
[1734011840578,1.6458,3942.3,3941.0,3.0]
[1734011840957,1.6458,3942.3,3940.7,1.72665323]
[1734011840958,2.5369,3941.9,3940.7,2.53761]
[1734011841288,1.6099,3941.6,3940.5,2.55875981]
[1734011841489,1.6099,3941.6,3940.5,5.09643981]
[1734011841686,2.53711,3941.5,3940.5,2.55875981]
[1734011841891,1.6099,3941.4,3940.5,2.55875981]
[1734011842051,0.03171956,3941.3,3940.5,2.55875981]
[1734011842497,0.49882414,3941.9,3940.5,2.55875981]
[1734011842498,1.6099,3941.0,3940.5,2.55875981]
[1734011843054,1.6099,3941.0,3940.1,2.538]
[1734011843286,1.6099,3941.0,3939.5,3.43022222]
[1734011843463,0.03172268,3940.9,3939.6,2.53828]
[1734011843788,0.03172268,3940.9,3939.1,2.53859]
[1734011843789,1.5621,3940.8,3939.5,2.53838]
[1734011843990,2.53711,3941.5,3938.8,5.06861953]
[1734011843991,2.53774,3940.6,3938.8,8.10321268]
[1734011844189,1.5621,3940.5,3939.3,2.53851]
[1734011844344,0.03172744,3940.4,3939.2,2.53857]
[1734011844544,1.5621,3940.5,3938.8,7.60742953]
[1734011844790,1.5621,3940.5,3938.8,5.06861953]
[1734011845100,1.5621,3940.5,3938.8,7.96037573]
[1734011845353,1.6455,3940.3,3939.1,2.53861]
[1734011846148,1.6455,3940.2,3938.8,2.5388]
[1734011846454,1.6401,3940.0,3938.8,2.53881]
[1734011846748,1.6401,3940.0,3938.9,2.53877]
[1734011847253,1.6401,3940.0,3938.3,4.18563901]
[1734011847254,1.6401,3940.0,3939.2,2.53858]
[1734011847436,1.6401,3940.0,3939.0,3.0]
[1734011848057,1.6401,3940.0,3939.0,2.53867]
[1734011848265,1.6401,3940.0,3938.5,5.53903]
[1734011848414,1.6401,3940.0,3938.9,3.0]
[1734011848611,1.80411,3940.0,3938.6,3.0]
[1734011848816,1.80411,3940.0,3938.3,4.18563901]
[1734011848817,1.80411,3940.0,3938.8,2.53882]
[1734011849056,1.80411,3940.0,3938.3,4.18563901]
[1734011849057,1.6227,3939.8,3938.3,2.53916]
[1734011849356,1.6227,3939.4,3937.8,3.54391953]
[1734011849525,1.6227,3939.4,3937.8,3.6625234]
[1734011849728,1.6227,3939.4,3938.0,2.53929]
[1734011850030,1.6227,3939.4,3938.7,2.5389]
[1734011850242,1.6227,3939.4,3938.7,2.53889]
[1734011850453,1.6227,3939.4,3938.8,2.53881]
[1734011850828,1.6227,3939.4,3938.0,0.50672076]
[1734011851012,1.6227,3939.4,3939.0,2.53869]
[1734011851213,1.6227,3939.4,3938.4,3.0]
[1734011851445,1.6227,3939.4,3939.0,2.53871]
[1734011851659,1.6227,3939.4,3938.8,2.53883]
[1734011851812,1.6227,3939.4,3939.0,2.53871]
[1734011852018,1.78497,3939.4,3938.0,2.53936]
[1734011852213,1.78497,3939.4,3938.4,3.0]
[1734011852441,1.78497,3939.4,3938.4,2.53909]
[1734011852676,1.78497,3939.4,3937.9,2.53942]
[1734011852917,1.78497,3939.4,3938.6,2.53896]
[1734011853112,1.78497,3939.4,3937.9,3.05025889]
[1734011853113,1.6227,3939.4,3937.9,3.05025889]
[1734011853360,1.6227,3939.4,3938.9,2.53876]
[1734011854257,1.6227,3939.4,3938.1,5.53929]
[1734011854457,1.6227,3939.4,3939.2,2.53853]
[1734011854834,1.6518,3940.4,3938.8,3.54391953]
[1734011855230,1.6518,3940.4,3939.6,2.5383]
[1734011855965,1.6518,3940.4,3939.5,2.53833]
[1734011856138,1.6518,3940.4,3939.8,3.54391953]
[1734011856334,1.6518,3940.4,3940.0,2.53801]
[1734011856533,1.6518,3940.4,3939.5,2.53838]
[1734011856933,1.6518,3940.4,3939.4,4.5297]
[1734011857337,1.6518,3940.4,3940.2,2.53793]
[1734011858075,1.6518,3940.4,3939.4,5.03672524]
[1734011858222,1.6518,3940.4,3940.0,2.53801]
[1734011859331,1.6518,3940.4,3939.7,5.53826]
[1734011859568,1.6518,3940.4,3940.0,2.53803]
[1734011859729,1.6518,3940.4,3939.7,3.0]
[1734011860129,1.6518,3940.4,3940.3,2.53787]
[1734011860373,4.035,3942.1,3939.5,2.53839]
[1734011860374,1.5137,3941.4,3940.4,2.53778]
[1734011860523,1.5137,3941.4,3939.9,6.08202953]
[1734011860524,1.5137,3941.4,3939.9,3.54391953]
[1734011860884,1.5137,3941.4,3940.4,3.54391953]
[1734011861023,1.5137,3941.4,3940.9,2.53748]
[1734011861525,1.5137,3941.4,3940.4,6.08167953]
[1734011861526,1.5137,3941.4,3940.7,2.53761]
[1734011862086,4.035,3942.5,3935.7,0.01835968]
[1734011862087,1.60151676,3941.3,3939.5,0.4983499]
[1734011862373,1.60151676,3941.3,3939.4,5.07361953]
[1734011862374,1.5698,3940.8,3939.4,6.08235953]
[1734011862665,1.5698,3940.6,3939.5,2.53838]
[1734011863233,1.5698,3940.6,3939.4,3.54391953]
[1734011863428,1.5698,3940.6,3939.5,3.0]
[1734011863628,1.5698,3940.6,3939.8,2.53813]
[1734011864064,1.5698,3940.6,3939.5,3.0]
[1734011864265,1.5698,3940.6,3939.8,3.0]
[1734011864702,1.5698,3940.6,3939.4,3.54391953]
[1734011864857,1.5698,3940.6,3939.5,3.0]
[1734011865222,1.5698,3940.6,3939.4,3.54391953]
[1734011865223,1.5912,3940.4,3939.4,3.0]
[1734011865365,1.5912,3940.4,3939.2,2.53852]
[1734011865702,0.412899,3940.3,3939.0,2.5387]
[1734011865864,1.5989,3940.0,3938.5,2.53903]
[1734011866061,1.5989,3940.0,3939.0,2.53869]
[1734011866507,1.5989,3940.0,3938.8,2.53882]
[1734011867036,0.0317318,3940.4,3938.0,0.12708295]
[1734011867037,1.5144,3939.6,3938.0,0.12708295]
[1734011867188,1.5144,3939.6,3938.7,2.53889]
[1734011867880,1.5144,3939.6,3938.0,2.53936]
[1734011868068,1.5144,3939.6,3938.5,2.53903]
[1734011868679,1.5695,3939.4,3938.2,2.53916]
[1734011868964,0.55,3939.7,3937.7,2.65801891]
[1734011868965,1.5695,3939.2,3937.7,2.65801891]
[1734011869311,1.5695,3939.2,3938.3,2.53916]
[1734011869462,1.5695,3939.2,3937.8,2.53948]
[1734011869663,1.5695,3939.2,3937.7,2.53955]
[1734011869873,1.5695,3939.2,3937.6,0.50965074]
[1734011869874,1.5695,3939.2,3937.9,3.0]
[1734011870079,1.5695,3939.2,3938.6,2.53893]
[1734011871406,1.5695,3939.2,3938.4,2.53909]
[1734011871913,0.0317373,3939.1,3938.4,2.53909]
[1734011872219,1.5695,3939.2,3937.9,3.0]
[1734011872373,1.72962378,3939.2,3938.2,3.0]
[1734011872580,1.72962378,3939.2,3938.2,5.53919]
[1734011872911,1.72962378,3939.2,3938.1,2.53928]
[1734011873121,1.72962378,3939.2,3937.8,5.53944]
[1734011873122,1.72962378,3939.2,3937.8,3.0]
[1734011873275,1.5626,3938.9,3937.9,3.0]
[1734011873614,1.5626,3938.7,3937.9,3.0]
[1734011874112,1.5626,3938.7,3937.2,2.53982]
[1734011874113,1.5626,3938.7,3938.0,2.53934]
[1734011874315,1.5626,3938.7,3937.4,3.0]
[1734011874480,1.5626,3938.7,3937.5,2.53968]
[1734011874677,1.5626,3938.7,3937.8,3.0]
[1734011875295,1.97590523,3938.7,3937.8,3.0]
[1734011875497,1.5293,3938.6,3937.5,2.53967]
[1734011875680,1.5293,3938.6,3937.5,3.0]
[1734011875882,1.5293,3938.6,3937.1,3.0]
[1734011876080,1.5293,3938.6,3937.6,2.53958]
[1734011876298,1.6101,3938.4,3937.6,2.53958]
[1734011876496,1.6101,3938.4,3937.3,2.53976]
[1734011876792,1.6101,3938.4,3937.0,2.53996]
[1734011877100,1.6101,3938.4,3937.5,2.53967]
[1734011877301,1.6101,3938.4,3937.0,2.53996]
[1734011877302,1.77428448,3938.4,3937.6,2.53958]
[1734011877603,1.77428448,3938.4,3937.1,2.53988]
[1734011877804,1.77428448,3938.4,3937.4,2.5397]
[1734011878004,1.77428448,3938.4,3936.8,0.1637945]
[1734011878005,1.6583,3938.2,3937.3,3.0]
[1734011878333,1.6583,3938.2,3937.1,3.0]
[1734011878480,1.6166,3938.0,3937.1,3.0]
[1734011878813,0.03174828,3937.9,3937.1,3.0]
[1734011879014,0.03174828,3937.9,3936.8,0.1637945]
[1734011879015,0.41875883,3937.9,3937.2,2.53986]
[1734011879227,1.6166,3938.0,3937.2,2.53986]
[1734011879525,1.6166,3938.0,3936.8,0.1637945]
[1734011879731,1.6166,3938.0,3937.3,2.53976]
[1734011880417,0.74323,3938.0,3937.0,3.0]
[1734011880629,0.74323,3938.0,3937.3,2.53975]
[1734011881124,0.74323,3938.0,3937.0,3.0]
[1734011881442,0.74323,3938.0,3936.8,3.1637945]
[1734011881588,0.74323,3938.0,3937.4,2.53971]
[1734011881781,0.74323,3938.0,3937.2,2.53981]
[1734011881987,0.03174643,3937.9,3937.1,3.0]
[1734011882331,0.74323,3938.0,3937.1,3.0]
[1734011882638,0.74323,3938.0,3936.8,0.1637945]
[1734011882639,2.53962,3937.6,3936.8,0.1637945]
[1734011882807,2.82540391,3937.5,3936.8,0.1637945]
[1734011883188,0.55,3937.4,3936.8,0.1637945]
[1734011883434,0.28571391,3937.5,3936.8,0.1637945]
[1734011883435,1.5611,3937.3,3936.8,0.1637945]
[1734011883631,0.03175492,3937.3,3936.8,0.1637945]
[1734011883793,1.5611,3937.1,3936.8,0.1637945]
[1734011884348,1.59285549,3937.0,3936.8,0.1637945]
[1734011884485,2.54006,3936.9,3936.8,0.1637945]
[1734011884688,4.06606,3936.9,3936.8,0.1637945]
[1734011885015,4.61606,3936.9,3936.8,0.1637945]
[1734011885355,4.64782107,3936.9,3936.8,0.1637945]
[1734011885498,5.10195311,3936.9,3936.8,0.1637945]
[1734011886138,2.01189311,3936.9,3936.8,0.1637945]
[1734011886654,1.526,3936.9,3936.8,0.1637945]
[1734011888649,4.61606,3936.9,3936.8,0.1637945]
[1734011889059,2.076,3936.9,3936.8,0.1637945]
[1734011889259,4.61606,3936.9,3936.8,0.1637945]
[1734011889876,8.68281983,3936.9,3936.8,0.1637945]
[1734011890022,9.77333298,3936.9,3936.8,0.1637945]
[1734011890217,9.77333298,3936.9,3936.8,4.5e-06]
[1734011890218,13.31725251,3936.9,3936.8,4.5e-06]
[1734011890482,13.39661155,3936.9,3936.8,4.5e-06]
[1734011890829,13.39661155,3936.9,3934.4,2.54166]
[1734011890830,1.6015,3935.6,3934.4,2.54166]
[1734011891024,0.03176768,3935.5,3934.1,1.5645]
[1734011891251,0.55,3935.4,3934.2,2.5418]
[1734011891453,1.6015,3935.1,3934.1,2.54187]
[1734011891636,1.6015,3935.1,3933.8,0.51362254]
[1734011891964,1.6015,3935.1,3934.0,0.3529262]
[1734011892169,1.6015,3935.1,3934.7,2.54148]
[1734011892371,1.6371,3936.0,3934.7,0.3529262]
[1734011892525,1.6371,3936.0,3935.6,2.54089]
[1734011892725,1.576,3936.4,3935.9,2.54071]
[1734011892939,1.576,3936.4,3936.1,2.54055]
[1734011893142,1.576,3936.4,3935.4,3.0]
[1734011893520,1.576,3936.4,3936.0,2.54064]
[1734011893748,1.576,3936.4,3935.6,2.54084]
[1734011893962,1.576,3936.4,3935.6,2.54088]
[1734011894123,1.576,3936.4,3935.3,5.54104]
[1734011894324,1.576,3936.4,3935.8,2.54075]
[1734011894542,1.576,3936.4,3935.6,2.5409]
[1734011895077,1.576,3936.4,3935.0,1.5416]
[1734011895399,1.576,3936.4,3935.5,3.0]
[1734011895576,1.576,3936.4,3935.7,2.54084]
[1734011895794,1.576,3936.4,3935.2,3.0]
[1734011895926,0.03176081,3936.3,3935.1,2.54116]
[1734011896128,1.5426,3936.2,3934.8,2.54142]
[1734011896328,4.035,3936.8,3934.5,2.54158]
[1734011896329,1.5426,3936.0,3934.5,2.54158]
[1734011896569,1.5426,3935.6,3934.5,2.54158]
[1734011897445,1.5426,3935.6,3934.6,2.5415]
[1734011897646,1.5426,3935.6,3934.3,1.5642]
[1734011897647,1.5426,3935.6,3934.5,3.0]
[1734011897866,1.5426,3935.6,3934.4,3.0]
[1734011898032,1.5426,3935.6,3934.3,1.5642]
[1734011898033,1.5426,3935.6,3934.6,2.54154]
[1734011898232,1.950931,3935.6,3934.6,2.54154]
[1734011898457,1.950931,3935.6,3934.3,1.5642]
[1734011898458,1.5426,3935.6,3934.3,1.5642]
[1734011898658,1.5426,3935.6,3934.5,3.0]
[1734011898843,1.5426,3935.6,3935.2,2.54111]
[1734011899371,1.5336,3935.9,3934.9,3.54391953]
[1734011899669,1.5336,3935.9,3935.2,2.54116]
[1734011900075,1.6403,3936.3,3935.9,2.54071]
[1734011900664,1.6403,3936.3,3936.0,2.54064]
[1734011900862,0.253962,3937.5,3936.2,2.54047]
[1734011900863,1.6403,3937.1,3936.2,2.54047]
[1734011901077,1.6403,3937.1,3935.3,3.0]
[1734011901078,1.6403,3937.1,3936.1,3.0]
[1734011901233,1.6403,3937.1,3936.1,2.54052]
[1734011901429,1.6403,3937.1,3936.0,3.0]
[1734011901686,0.26299244,3937.1,3936.4,2.54037]
[1734011901888,0.26299244,3937.1,3936.1,2.54058]
[1734011902062,0.26299244,3937.1,3936.0,3.0]
[1734011902063,0.26299244,3937.1,3936.2,2.54049]
[1734011902265,0.03175181,3937.8,3935.7,3.0]
[1734011902465,2.54014,3936.8,3935.7,3.0]
[1734011903168,2.54001,3937.0,3935.7,2.54082]
[1734011903363,0.03175834,3937.2,3935.7,2.54082]
[1734011903565,3.20098352,3937.2,3935.5,3.0]
[1734011903813,3.40997835,3937.2,3936.1,2.54056]
[1734011904021,3.40997835,3937.2,3935.5,3.0]
[1734011904022,0.32009835,3937.2,3936.3,2.54045]
[1734011904183,2.53975,3937.4,3936.3,2.54045]
[1734011904570,2.53986,3937.3,3936.0,2.54062]
[1734011904828,1.6493,3937.4,3935.8,2.54077]
[1734011905121,1.6493,3937.4,3935.7,3.0]
[1734011905122,2.53988,3937.2,3935.9,2.54066]
[1734011905266,2.53994,3937.1,3936.0,2.54064]
[1734011905681,1.6493,3937.3,3936.1,2.54052]
[1734011905932,1.6493,3937.3,3935.5,3.0]
[1734011905933,1.6493,3937.3,3936.0,4.5774]
[1734011906094,1.6493,3937.3,3936.4,3.0]
[1734011906622,1.6493,3937.3,3936.7,2.54015]
[1734011906831,1.6493,3937.3,3936.5,2.54031]
[1734011907036,1.6493,3937.3,3936.6,2.54023]
[1734011907329,1.6493,3937.3,3936.9,2.54001]
[1734011907645,1.6493,3937.3,3936.9,2.54004]
[1734011907799,1.6493,3937.3,3936.3,3.0]
[1734011908126,1.6493,3937.3,3936.9,2.54]
[1734011908352,0.55,3938.1,3936.6,3.0]
[1734011908545,1.545,3938.2,3936.7,2.54019]
[1734011908546,0.07932521,3938.0,3936.7,2.54019]
[1734011908828,0.07932521,3938.0,3936.5,5.54032]
[1734011908829,1.545,3938.8,3938.1,2.53923]
[1734011909042,1.545,3938.8,3937.6,2.53961]
[1734011909043,1.545,3938.8,3938.2,2.53921]
[1734011909253,1.6061,3939.7,3938.4,5.09721953]
[1734011909402,1.6061,3939.7,3938.5,3.0]
[1734011909403,0.07929654,3939.6,3938.5,3.0]
[1734011909602,0.03173429,3939.5,3938.2,2.5392]
[1734011909836,1.6061,3939.4,3938.4,2.53909]
[1734011910209,1.6061,3939.4,3938.5,3.0]
[1734011910553,1.6061,3939.4,3938.7,2.53889]
[1734011910725,1.6061,3939.4,3938.6,2.53896]
[1734011910925,1.6061,3939.4,3938.5,3.0]
[1734011911306,0.03173454,3939.3,3938.0,3.0]
[1734011911509,1.5544,3939.1,3938.0,2.53934]
[1734011911751,2.57047943,3939.0,3937.7,5.5395]
[1734011912063,0.03173944,3939.0,3937.4,4.522]
[1734011912209,2.53879,3938.9,3937.4,4.522]
[1734011912405,2.53879,3938.9,3937.8,5.53948]
[1734011912642,0.409319,3938.8,3937.8,5.53948]
[1734011912825,2.53871,3939.0,3937.8,5.53948]
[1734011913040,2.53871,3939.0,3937.4,1.522]
[1734011913041,2.53883,3938.9,3937.4,4.522]
[1734011913205,2.53883,3938.9,3937.7,3.0]
[1734011913415,2.53883,3938.9,3937.7,2.53955]
[1734011913761,2.53883,3938.9,3937.8,3.0]
[1734011913908,1.5194,3938.7,3937.4,4.522]
[1734011914253,1.5194,3938.7,3937.4,3.0]
[1734011914441,1.5194,3938.7,3937.6,2.53961]
[1734011914644,1.5194,3938.7,3937.4,3.0]
[1734011914645,1.5194,3938.7,3937.5,2.53968]
[1734011914852,1.5746,3939.5,3938.4,2.53909]
[1734011915030,0.411294,3939.4,3938.4,2.53909]
[1734011915213,0.411294,3939.4,3937.9,3.0]
[1734011915413,1.5746,3939.5,3937.9,3.0]
[1734011915414,1.5746,3939.5,3938.2,3.0]
[1734011915756,1.5746,3939.5,3938.2,2.53922]
[1734011916052,2.53847,3939.4,3938.2,2.53922]
[1734011916414,1.5746,3939.5,3937.9,3.0]
[1734011916618,2.53856,3939.3,3938.1,2.53923]
[1734011916917,0.411316,3939.2,3938.2,5.53919]
[1734011917116,1.5746,3939.5,3938.3,3.54391953]
[1734011917353,1.5746,3939.5,3938.5,1.5134]
[1734011917531,1.5746,3939.5,3938.7,2.53887]
[1734011918665,0.03173325,3939.4,3938.4,3.0]
[1734011918953,1.6394,3939.0,3938.0,2.53929]
[1734011919716,1.6394,3939.0,3937.4,0.50603173]
[1734011919717,2.53887,3938.8,3937.4,1.5134]
[1734011920134,1.5173,3938.8,3937.5,2.53968]
[1734011920550,1.5173,3938.8,3937.3,3.54391953]
[1734011920551,1.54904274,3938.8,3937.3,6.08372953]
[1734011920853,3.08864,3939.2,3937.3,3.54391953]
[1734011920854,1.5173,3938.5,3937.3,3.54391953]
[1734011921016,2.53915,3938.4,3937.3,3.54391953]
[1734011921427,1.5173,3938.5,3937.5,2.53965]
[1734011921750,1.5173,3938.5,3937.4,2.53974]
[1734011922332,1.5173,3938.5,3937.3,3.54391953]
[1734011922537,1.5173,3938.5,3937.8,2.53947]
[1734011923135,1.5173,3938.5,3937.7,2.53953]
[1734011923656,1.5173,3938.5,3937.3,3.54391953]
[1734011923819,1.5173,3938.5,3937.5,2.53967]
[1734011924158,1.5173,3938.5,3937.3,6.08371953]
[1734011924363,2.69085,3938.4,3937.3,6.08371953]
[1734011924711,0.03174331,3938.3,3937.0,2.53995]
[1734011924915,2.53944,3937.9,3936.9,3.0]
[1734011925171,2.53929,3938.1,3937.1,3.0]
[1734011925324,2.53939,3938.0,3936.9,3.0]
[1734011925523,0.411679,3938.0,3936.9,3.0]
[1734011925724,1.5774,3938.2,3937.3,2.53979]
[1734011926056,1.5774,3938.2,3936.9,3.0]
[1734011926259,1.5774,3938.2,3937.4,1.5045]
[1734011926568,1.5774,3938.2,3937.5,2.53963]
[1734011926771,1.5774,3938.2,3937.3,6.08371953]
[1734011927867,1.5774,3938.2,3937.4,2.53971]
[1734011928068,1.5774,3938.2,3937.5,2.53967]
[1734011928371,1.5774,3938.2,3937.3,3.54391953]
[1734011928537,1.5774,3938.2,3937.5,2.53965]
[1734011928869,1.5774,3938.2,3937.3,3.54391953]
[1734011928870,1.73514,3938.2,3937.3,3.0]
[1734011929164,1.73514,3938.2,3937.3,2.53979]
[1734011929323,1.73514,3938.2,3937.4,2.53974]
[1734011930518,1.5774,3938.2,3937.2,3.0]
[1734011930718,1.5774,3938.2,3937.0,1.5045]
[1734011930719,1.5551,3939.0,3937.8,3.0]
[1734011930918,1.5551,3939.0,3938.2,2.53922]
[1734011931115,1.5551,3939.0,3938.0,5.53935]
[1734011931781,4.09382,3939.0,3938.0,5.53935]
[1734011931977,4.503202,3939.0,3938.0,5.53935]
[1734011932130,1.964482,3939.0,3938.0,5.53935]
[1734011932881,1.5551,3939.0,3938.2,3.0]
[1734011933026,1.5551,3939.0,3938.0,3.0]
[1734011933477,1.5704,3939.7,3938.8,2.53882]
[1734011933772,1.5704,3939.7,3938.9,2.53877]
[1734011933928,1.5704,3939.7,3938.8,2.53879]
[1734011934428,1.5704,3939.7,3938.7,3.0]
[1734011934630,1.5704,3939.7,3939.0,2.53867]
[1734011934870,1.5704,3939.7,3939.1,2.53863]
[1734011935070,1.5704,3939.7,3939.2,2.53856]
[1734011935510,1.5704,3939.7,3939.3,2.5385]
[1734011935634,1.5704,3939.7,3938.5,4.6086]
[1734011935983,1.6121,3940.3,3938.9,3.54391953]
[1734011936152,1.6121,3940.3,3939.6,2.53827]
[1734011936748,1.6121,3940.3,3939.3,2.53846]
[1734011936956,1.6121,3940.3,3938.9,3.54391953]
[1734011936957,2.53795,3940.2,3938.9,3.54391953]
[1734011937135,1.6121,3940.3,3938.6,2.53896]
[1734011937136,1.6121,3940.3,3938.7,3.0]
[1734011937334,1.6121,3940.3,3939.1,1.6075]
[1734011937845,0.03172806,3940.2,3938.7,3.0]
[1734011938072,0.03172806,3940.2,3938.6,2.5389]
[1734011938073,1.5406,3939.8,3938.9,3.0]
[1734011938389,1.5406,3939.8,3939.0,3.0]
[1734011938531,1.5406,3939.8,3939.3,2.53852]
[1734011939439,1.5406,3939.8,3938.9,3.0]
[1734011939655,1.5406,3939.8,3938.7,3.0]
[1734011939955,1.5406,3939.8,3939.1,2.53863]
[1734011940164,1.5406,3939.8,3938.7,3.0]
[1734011940338,1.5406,3939.8,3939.1,2.53861]
[1734011940538,1.5406,3939.8,3938.9,3.0]
[1734011940942,1.5406,3939.8,3939.1,2.53863]
[1734011941244,1.5406,3939.8,3938.7,3.0]
[1734011941245,0.15406,3939.7,3938.7,3.0]
[1734011941488,0.03173143,3939.6,3938.5,2.53903]
[1734011941686,1.5978,3939.5,3938.5,2.53903]
[1734011941894,0.51601314,3939.4,3938.2,2.53923]
[1734011942055,0.51601314,3939.4,3938.9,2.53873]
[1734011942257,1.5978,3939.5,3938.9,2.53873]
[1734011942258,1.5978,3939.5,3939.4,2.53845]
[1734011942478,0.50307476,3940.4,3939.4,2.53845]
[1734011942791,0.50307476,3940.4,3939.0,3.0]
[1734011943090,1.5308,3940.3,3939.2,2.53858]
[1734011943390,1.5308,3940.3,3939.1,6.08256953]
[1734011943689,1.5308,3940.3,3939.2,3.0]
[1734011943897,1.5308,3940.3,3939.7,2.53822]
[1734011944049,1.5308,3940.3,3939.4,2.5384]
[1734011944390,1.937651,3940.3,3939.2,5.53858]
[1734011944596,0.03172702,3940.2,3939.2,3.0]
[1734011944803,2.53794,3940.2,3939.2,3.0]
[1734011945348,1.5308,3940.3,3939.2,3.0]
[1734011945595,1.5308,3940.3,3938.8,1.5738]
[1734011945887,4.06874,3940.3,3939.2,3.0]
[1734011946098,1.5308,3940.3,3939.0,3.0]
[1734011946594,1.6267,3939.7,3938.8,2.53883]
[1734011946804,1.6267,3939.7,3938.9,3.0]
[1734011947475,1.6267,3939.7,3938.7,3.0]
[1734011947809,1.6267,3939.7,3939.0,2.5387]
[1734011948303,1.6267,3939.7,3938.7,3.0]
[1734011948489,1.6267,3939.7,3938.5,5.53902]
[1734011948490,2.53838,3939.6,3938.5,5.53902]
[1734011949364,2.53857,3939.3,3938.1,2.53928]
[1734011949711,2.53858,3939.2,3938.1,2.53928]
[1734011949918,1.6048,3939.4,3937.6,3.54391953]
[1734011949919,1.5434,3939.0,3937.9,2.53942]
[1734011950593,1.5434,3939.0,3937.4,3.04309949]
[1734011950594,1.5434,3939.0,3938.1,3.54391953]
[1734011950799,1.6499,3939.4,3939.1,2.53858]
[1734011951010,2.5376,3940.8,3938.7,2.53888]
[1734011951011,1.6499,3940.7,3939.7,2.53823]
[1734011951337,1.5564,3940.4,3939.4,2.53839]
[1734011951622,1.5564,3940.2,3939.0,2.5387]
[1734011951841,1.5564,3939.6,3938.6,5.53895]
[1734011952034,0.03173529,3939.5,3937.9,1.5763]
[1734011952205,1.5688,3939.4,3937.9,1.5763]
[1734011952529,0.03173741,3940.0,3937.6,3.54391953]
[1734011952530,1.5688,3939.1,3938.2,2.53921]
[1734011953024,1.5688,3939.1,3938.3,2.53911]
[1734011954030,1.5688,3939.1,3938.4,2.53909]
[1734011954234,1.5688,3939.1,3938.6,2.53891]
[1734011955217,1.5688,3939.1,3938.2,3.0]
[1734011955218,1.5565,3939.8,3938.4,1.5104]
[1734011955486,1.5565,3939.8,3938.7,3.0]
[1734011955693,1.5565,3939.8,3939.0,2.53867]
[1734011955916,1.5565,3939.8,3939.6,2.53831]
[1734011956225,0.51309503,3940.6,3939.4,2.53839]
[1734011956542,1.5874,3940.1,3939.0,3.0]
[1734011956694,0.15874,3940.0,3938.7,3.0]
[1734011956895,1.5874,3940.1,3938.7,3.0]
[1734011957127,1.5874,3940.1,3939.1,2.53864]
[1734011957443,1.5874,3940.1,3938.7,3.0]
[1734011957444,1.5874,3940.1,3939.3,2.53846]
[1734011957595,1.5874,3940.1,3939.0,2.53867]
[1734011957800,1.5874,3940.1,3939.1,2.53864]
[1734011957999,1.5874,3940.1,3938.7,3.0]
[1734011958000,4.54111789,3940.1,3938.7,3.0]
[1734011958240,1.5874,3940.1,3938.7,3.0]
[1734011958442,1.5874,3940.1,3938.4,4.5494838]
[1734011958443,1.6505,3940.9,3939.9,2.53807]
[1734011958655,1.6505,3940.9,3940.0,2.53804]
[1734011959255,1.6505,3940.9,3939.8,2.53816]
[1734011959494,1.6505,3940.9,3939.5,2.53834]
[1734011959657,1.6505,3940.9,3940.4,2.53775]
[1734011960007,1.6505,3940.9,3940.4,2.5378]
[1734011960583,1.6505,3940.9,3940.0,1.6516]
[1734011960584,1.6505,3940.9,3940.0,3.0]
[1734011960784,1.6505,3940.9,3939.6,3.54391953]
[1734011960785,1.6505,3940.9,3939.7,5.53822]
[1734011961091,1.6505,3940.9,3939.7,3.0]
[1734011961239,1.6505,3940.9,3940.5,2.53772]
[1734011961439,1.6505,3940.9,3940.0,2.53802]
[1734011961653,1.6505,3940.9,3940.3,2.53787]
[1734011962202,0.03171931,3940.8,3939.9,2.5381]
[1734011962353,1.6505,3940.9,3940.1,2.53799]
[1734011962560,0.03172132,3940.8,3940.0,3.0]
[1734011962761,1.6505,3940.9,3940.4,2.53779]
[1734011962997,1.6505,3940.9,3939.7,3.0]
[1734011963141,1.6505,3940.9,3940.4,2.5378]
[1734011963337,1.6505,3940.9,3940.0,3.0]
[1734011963551,1.6505,3940.9,3940.3,2.53787]
[1734011963993,1.6505,3940.9,3940.0,5.53804]
[1734011964284,1.6505,3940.9,3940.1,2.53796]
[1734011964489,1.6505,3940.9,3939.7,3.0]
[1734011964653,1.6505,3940.9,3940.0,2.53801]
[1734011965057,1.6505,3940.9,3940.0,2.53804]
[1734011965759,1.6505,3940.9,3939.7,3.0]
[1734011965958,1.6505,3940.9,3940.2,2.53791]
[1734011966284,1.6505,3940.9,3940.0,2.53804]
[1734011966447,1.6505,3940.9,3939.5,1.566]